[Event "Late-Titled-Tuesday-Blitz-March-26-2024"]
[Site "Chess.com"]
[Date "2024.03.26"]
[Round "11"]
[White "Houdinovic"]
[Black "Statham_01"]
[Result "0-1"]
[WhiteElo "2708"]
[BlackElo "2635"]
[TimeControl "180+1"]
[EndTime "16:03:52 PDT"]
[Termination "Statham_01 won on time"]

1. c4 {[%clk 0:02:59.4]} 1... e5 {[%clk 0:03:00]} 2. g3 {[%clk 0:02:51.8]} 2...
Nf6 {[%clk 0:02:59]} 3. Bg2 {[%clk 0:02:52.1]} 3... c6 {[%clk 0:02:59.5]} 4. Nf3
{[%clk 0:02:50.9]} 4... e4 {[%clk 0:02:59.1]} 5. Nd4 {[%clk 0:02:51.4]} 5... d5
{[%clk 0:02:59.8]} 6. cxd5 {[%clk 0:02:45.5]} 6... Qxd5 {[%clk 0:03:00.4]} 7.
Nc2 {[%clk 0:02:44.2]} 7... Na6 {[%clk 0:02:49]} 8. Nc3 {[%clk 0:02:43.1]} 8...
Qe5 {[%clk 0:02:49]} 9. O-O {[%clk 0:02:30.8]} 9... Be7 {[%clk 0:02:43.9]} 10.
d4 {[%clk 0:02:29.6]} 10... exd3 {[%clk 0:02:35.7]} 11. exd3 {[%clk 0:02:29.7]}
11... Bg4 {[%clk 0:02:35.2]} 12. Qd2 {[%clk 0:02:29.1]} 12... O-O {[%clk
0:02:28.5]} 13. h3 {[%clk 0:02:27.9]} 13... Be6 {[%clk 0:02:25.6]} 14. Re1
{[%clk 0:02:25.8]} 14... Qh5 {[%clk 0:02:25.3]} 15. Nd4 {[%clk 0:02:24]} 15...
Bc5 {[%clk 0:01:50.8]} 16. Nxe6 {[%clk 0:02:01.7]} 16... fxe6 {[%clk 0:01:51.7]}
17. d4 {[%clk 0:01:57.2]} 17... Rad8 {[%clk 0:01:46.5]} 18. Ne2 {[%clk
0:01:52.5]} 18... e5 {[%clk 0:01:39.2]} 19. Qc2 {[%clk 0:01:48.9]} 19... Bb6
{[%clk 0:01:27.7]} 20. dxe5 {[%clk 0:00:25.5]} 20... Nd5 {[%clk 0:01:26.2]} 21.
Nf4 {[%clk 0:00:20.6]} 21... Qe8 {[%clk 0:01:07.6]} 22. e6 {[%clk 0:00:10.7]}
22... Qe7 {[%clk 0:01:07.6]} 23. Bxd5 {[%clk 0:00:08.1]} 23... cxd5 {[%clk
0:01:08.5]} 24. Bd2 {[%clk 0:00:06.4]} 24... g5 {[%clk 0:01:04.9]} 25. Nd3
{[%clk 0:00:06.4]} 25... Qd6 {[%clk 0:00:51.4]} 26. Kg2 {[%clk 0:00:06]} 26...
Rde8 {[%clk 0:00:46.4]} 27. Bxg5 {[%clk 0:00:05.2]} 27... Nb4 {[%clk 0:00:39.3]}
28. Nxb4 {[%clk 0:00:01.9]} 28... Rxf2+ {[%clk 0:00:36.9]} 29. Qxf2 {[%clk
0:00:02.5]} 29... Bxf2 {[%clk 0:00:37.8]} 30. Kxf2 {[%clk 0:00:02.4]} 30... Qxb4
{[%clk 0:00:37.7]} 31. Re2 {[%clk 0:00:03]} 31... d4 {[%clk 0:00:29.8]} 32. Rd1
{[%clk 0:00:02.1]} 32... Qc4 {[%clk 0:00:26.3]} 0-1

[Event "Late-Titled-Tuesday-Blitz-March-26-2024"]
[Site "Chess.com"]
[Date "2024.03.26"]
[Round "11"]
[White "Godzillator"]
[Black "secretsuperstar7"]
[Result "1-0"]
[WhiteElo "2387"]
[BlackElo "2482"]
[TimeControl "180+1"]
[EndTime "16:03:52 PDT"]
[Termination "Godzillator won on time"]

1. c4 {[%clk 0:03:00.9]} 1... Nf6 {[%clk 0:02:53.3]} 2. Nc3 {[%clk 0:02:57.9]}
2... c5 {[%clk 0:02:51.3]} 3. g3 {[%clk 0:02:57.1]} 3... Nc6 {[%clk 0:02:51.3]}
4. Bg2 {[%clk 0:02:57.5]} 4... g6 {[%clk 0:02:49.7]} 5. Nf3 {[%clk 0:02:57.8]}
5... Bg7 {[%clk 0:02:49.8]} 6. O-O {[%clk 0:02:57.9]} 6... O-O {[%clk 0:02:50]}
7. d3 {[%clk 0:02:57.9]} 7... d6 {[%clk 0:02:47.6]} 8. a3 {[%clk 0:02:56.5]}
8... a6 {[%clk 0:02:46.1]} 9. Rb1 {[%clk 0:02:56.7]} 9... Rb8 {[%clk 0:02:46.3]}
10. b4 {[%clk 0:02:55.3]} 10... cxb4 {[%clk 0:02:45.7]} 11. axb4 {[%clk
0:02:55.5]} 11... b5 {[%clk 0:02:46]} 12. Ng5 {[%clk 0:02:36.7]} 12... Bd7
{[%clk 0:02:35.8]} 13. cxb5 {[%clk 0:02:36.1]} 13... axb5 {[%clk 0:02:35.1]} 14.
Nce4 {[%clk 0:02:35.4]} 14... Nd5 {[%clk 0:02:13]} 15. Bd2 {[%clk 0:02:13.1]}
15... h6 {[%clk 0:02:06.8]} 16. Nh3 {[%clk 0:02:02]} 16... Bxh3 {[%clk 0:01:30]}
17. Bxh3 {[%clk 0:01:58.7]} 17... f5 {[%clk 0:01:29.8]} 18. Rc1 {[%clk
0:01:52.5]} 18... Nd4 {[%clk 0:01:10.4]} 19. e3 {[%clk 0:01:37.2]} 19... fxe4
{[%clk 0:00:22.6]} 20. exd4 {[%clk 0:01:37]} 20... Nf6 {[%clk 0:00:21.7]} 21.
Be3 {[%clk 0:01:21.8]} 21... exd3 {[%clk 0:00:11.2]} 22. Qxd3 {[%clk 0:01:21.3]}
22... Kh7 {[%clk 0:00:11.5]} 23. d5 {[%clk 0:01:13]} 23... Nd7 {[%clk
0:00:10.3]} 24. Be6 {[%clk 0:01:08.9]} 24... Ne5 {[%clk 0:00:10.2]} 25. Qe2
{[%clk 0:01:04.9]} 25... Nf3+ {[%clk 0:00:08.2]} 26. Kh1 {[%clk 0:01:04.8]}
26... Ra8 {[%clk 0:00:07.9]} 27. Bf4 {[%clk 0:01:00]} 27... Ne5 {[%clk 0:00:07]}
28. Rc2 {[%clk 0:00:50.2]} 28... Ra3 {[%clk 0:00:06.9]} 29. Rfc1 {[%clk
0:00:48.1]} 29... Qb6 {[%clk 0:00:07.1]} 30. Be3 {[%clk 0:00:46.4]} 30... Qb7
{[%clk 0:00:04.1]} 31. Rc7 {[%clk 0:00:45]} 31... Qb8 {[%clk 0:00:04.3]} 32.
Rxe7 {[%clk 0:00:44.5]} 32... Qa8 {[%clk 0:00:02.7]} 33. Rcc7 {[%clk 0:00:41.5]}
33... Ra1+ {[%clk 0:00:02.5]} 34. Kg2 {[%clk 0:00:41.2]} 34... Rg8 {[%clk
0:00:01.1]} 35. Qb2 {[%clk 0:00:27.2]} 1-0

[Event "Late-Titled-Tuesday-Blitz-March-26-2024"]
[Site "Chess.com"]
[Date "2024.03.26"]
[Round "11"]
[White "CFalcons8"]
[Black "N_Mullodzhanov"]
[Result "1/2-1/2"]
[WhiteElo "2424"]
[BlackElo "2544"]
[TimeControl "180+1"]
[EndTime "16:04:00 PDT"]
[Termination "Game drawn by repetition"]

1. d4 {[%clk 0:02:59.6]} 1... Nf6 {[%clk 0:03:00]} 2. Nf3 {[%clk 0:02:58.8]}
2... g6 {[%clk 0:03:00]} 3. g3 {[%clk 0:02:58]} 3... Bg7 {[%clk 0:02:59.8]} 4.
Bg2 {[%clk 0:02:58.7]} 4... O-O {[%clk 0:02:59.8]} 5. O-O {[%clk 0:02:59.3]}
5... d6 {[%clk 0:02:59.8]} 6. c4 {[%clk 0:02:58.8]} 6... c5 {[%clk 0:02:59.8]}
7. d5 {[%clk 0:02:56.3]} 7... e5 {[%clk 0:02:53.5]} 8. Nc3 {[%clk 0:02:53]} 8...
Re8 {[%clk 0:02:52.3]} 9. Nd2 {[%clk 0:02:51.4]} 9... Nfd7 {[%clk 0:02:47.4]}
10. e3 {[%clk 0:02:46.4]} 10... f5 {[%clk 0:02:46.2]} 11. b3 {[%clk 0:02:44.4]}
11... e4 {[%clk 0:02:40.8]} 12. Bb2 {[%clk 0:02:44.2]} 12... Ne5 {[%clk
0:02:41.2]} 13. Rb1 {[%clk 0:02:41.9]} 13... Nbd7 {[%clk 0:02:30.5]} 14. Qc2
{[%clk 0:02:37.8]} 14... Nd3 {[%clk 0:02:28.3]} 15. Ba1 {[%clk 0:02:31.4]} 15...
N7e5 {[%clk 0:02:27.5]} 16. a3 {[%clk 0:02:23.9]} 16... a6 {[%clk 0:02:23.9]}
17. b4 {[%clk 0:02:23.6]} 17... b6 {[%clk 0:02:20.7]} 18. Rfd1 {[%clk
0:02:19.8]} 18... Ng4 {[%clk 0:02:19]} 19. Rf1 {[%clk 0:01:55.3]} 19... h5
{[%clk 0:02:18.6]} 20. h3 {[%clk 0:01:51]} 20... Nge5 {[%clk 0:02:15.3]} 21. Ne2
{[%clk 0:01:48.8]} 21... cxb4 {[%clk 0:02:11.7]} 22. axb4 {[%clk 0:01:49.7]}
22... a5 {[%clk 0:02:12]} 23. bxa5 {[%clk 0:01:48.7]} 23... bxa5 {[%clk
0:02:08.4]} 24. Bd4 {[%clk 0:01:47.1]} 24... h4 {[%clk 0:02:00.5]} 25. Nf4
{[%clk 0:01:38.9]} 25... Nxf4 {[%clk 0:01:37.9]} 26. gxf4 {[%clk 0:01:36.1]}
26... Nd3 {[%clk 0:01:32.2]} 27. Bxg7 {[%clk 0:01:32]} 27... Kxg7 {[%clk
0:01:32.4]} 28. Nb3 {[%clk 0:01:32.6]} 28... a4 {[%clk 0:01:29.1]} 29. Nd4
{[%clk 0:01:32.4]} 29... Qf6 {[%clk 0:01:23.2]} 30. Rb6 {[%clk 0:01:22.8]} 30...
Ra6 {[%clk 0:01:20.5]} 31. Rxa6 {[%clk 0:01:22.2]} 31... Bxa6 {[%clk 0:01:20.6]}
32. Qxa4 {[%clk 0:01:22.9]} 32... Ra8 {[%clk 0:01:15.3]} 33. Ne6+ {[%clk
0:01:16.2]} 33... Kh6 {[%clk 0:01:09.7]} 34. Qc6 {[%clk 0:01:11.6]} 34... Ra7
{[%clk 0:01:06.4]} 35. Qb6 {[%clk 0:01:10.9]} 35... Qe7 {[%clk 0:00:58.4]} 36.
Ra1 {[%clk 0:01:08.1]} 36... Qf6 {[%clk 0:00:44]} 37. Rxa6 {[%clk 0:01:01]}
37... Rxa6 {[%clk 0:00:44.4]} 38. Qxa6 {[%clk 0:01:01.9]} 38... Qb2 {[%clk
0:00:44.6]} 39. Qa7 {[%clk 0:00:36.8]} 39... Qxf2+ {[%clk 0:00:41.7]} 40. Kh1
{[%clk 0:00:34.5]} 40... Qe1+ {[%clk 0:00:34.4]} 41. Kh2 {[%clk 0:00:33.6]}
41... Qg3+ {[%clk 0:00:34.1]} 42. Kg1 {[%clk 0:00:31.3]} 42... Qe1+ {[%clk
0:00:32.7]} 43. Kh2 {[%clk 0:00:30.8]} 43... Qg3+ {[%clk 0:00:27.8]} 44. Kg1
{[%clk 0:00:26]} 44... Qe1+ {[%clk 0:00:28.7]} 45. Kh2 {[%clk 0:00:26.2]}
1/2-1/2

[Event "Late-Titled-Tuesday-Blitz-March-26-2024"]
[Site "Chess.com"]
[Date "2024.03.26"]
[Round "11"]
[White "Hirna2005"]
[Black "RuperezA"]
[Result "0-1"]
[WhiteElo "2320"]
[BlackElo "2473"]
[TimeControl "180+1"]
[EndTime "16:04:03 PDT"]
[Termination "RuperezA won by checkmate"]

1. e4 {[%clk 0:03:00.9]} 1... c5 {[%clk 0:02:57.6]} 2. c3 {[%clk 0:03:00.6]}
2... Nf6 {[%clk 0:02:57]} 3. e5 {[%clk 0:03:00.9]} 3... Nd5 {[%clk 0:02:57.7]}
4. Nf3 {[%clk 0:03:01.2]} 4... d6 {[%clk 0:02:54.2]} 5. Bc4 {[%clk 0:03:01.1]}
5... e6 {[%clk 0:02:52.9]} 6. d4 {[%clk 0:02:59.4]} 6... cxd4 {[%clk 0:02:51.7]}
7. cxd4 {[%clk 0:02:59.2]} 7... Nb6 {[%clk 0:02:45.3]} 8. Bd3 {[%clk 0:02:58.6]}
8... Nc6 {[%clk 0:02:43.9]} 9. O-O {[%clk 0:02:54.7]} 9... dxe5 {[%clk
0:02:43.3]} 10. dxe5 {[%clk 0:02:54.6]} 10... Nb4 {[%clk 0:02:43.9]} 11. Bb5+
{[%clk 0:02:54.3]} 11... Bd7 {[%clk 0:02:44.2]} 12. Nc3 {[%clk 0:02:50.6]} 12...
Bxb5 {[%clk 0:02:42.8]} 13. Nxb5 {[%clk 0:02:50.7]} 13... a6 {[%clk 0:02:39.7]}
14. Nd6+ {[%clk 0:02:43]} 14... Bxd6 {[%clk 0:02:38.8]} 15. exd6 {[%clk
0:02:43.3]} 15... N4d5 {[%clk 0:02:39.5]} 16. Qd4 {[%clk 0:02:36.9]} 16... O-O
{[%clk 0:02:35.6]} 17. Bf4 {[%clk 0:02:28.4]} 17... Rc8 {[%clk 0:02:34.1]} 18.
Bg3 {[%clk 0:02:24.1]} 18... Rc2 {[%clk 0:02:20.8]} 19. Rac1 {[%clk 0:02:19.8]}
19... Qc8 {[%clk 0:02:20.2]} 20. Rxc2 {[%clk 0:02:16.2]} 20... Qxc2 {[%clk
0:02:21.1]} 21. a3 {[%clk 0:01:45.7]} 21... Rd8 {[%clk 0:02:09.4]} 22. h4 {[%clk
0:01:40.6]} 22... Nc4 {[%clk 0:02:07.5]} 23. Qc5 {[%clk 0:01:24]} 23... Qa4
{[%clk 0:01:55.9]} 24. Ne5 {[%clk 0:01:00.6]} 24... Nxd6 {[%clk 0:01:44.1]} 25.
h5 {[%clk 0:00:45.6]} 25... Ne4 {[%clk 0:01:40.9]} 26. Qa7 {[%clk 0:00:37.9]}
26... Qb5 {[%clk 0:01:28]} 27. Bh2 {[%clk 0:00:31.7]} 27... h6 {[%clk
0:01:26.6]} 28. Rc1 {[%clk 0:00:26.6]} 28... Qxb2 {[%clk 0:01:21.2]} 29. Re1
{[%clk 0:00:21.4]} 29... Ndc3 {[%clk 0:00:56.7]} 30. Qe3 {[%clk 0:00:18.7]}
30... Qxa3 {[%clk 0:00:53.2]} 31. Qf3 {[%clk 0:00:16.8]} 31... Ng5 {[%clk
0:00:50.3]} 32. Qxb7 {[%clk 0:00:14.3]} 32... a5 {[%clk 0:00:41]} 33. Bf4 {[%clk
0:00:13.9]} 33... Qb4 {[%clk 0:00:34.1]} 34. Qc7 {[%clk 0:00:10]} 34... Rf8
{[%clk 0:00:30.5]} 35. Bxg5 {[%clk 0:00:09]} 35... hxg5 {[%clk 0:00:31.4]} 36.
h6 {[%clk 0:00:08]} 36... Nd5 {[%clk 0:00:31.3]} 37. Qa7 {[%clk 0:00:05.7]}
37... Qxe1+ {[%clk 0:00:30.8]} 38. Kh2 {[%clk 0:00:05]} 38... Qxe5+ {[%clk
0:00:31.7]} 39. Kg1 {[%clk 0:00:04.8]} 39... gxh6 {[%clk 0:00:32.6]} 40. g3
{[%clk 0:00:04.5]} 40... Rc8 {[%clk 0:00:32.2]} 41. Qxa5 {[%clk 0:00:03.8]}
41... Rc1+ {[%clk 0:00:32.8]} 42. Kg2 {[%clk 0:00:04.2]} 42... Qe4+ {[%clk
0:00:33.3]} 43. Kh3 {[%clk 0:00:04.7]} 43... Rh1# {[%clk 0:00:33]} 0-1

[Event "Late-Titled-Tuesday-Blitz-March-26-2024"]
[Site "Chess.com"]
[Date "2024.03.26"]
[Round "11"]
[White "jefferyx"]
[Black "rezamahdavi2008"]
[Result "1-0"]
[WhiteElo "3106"]
[BlackElo "2894"]
[TimeControl "180+1"]
[EndTime "16:04:05 PDT"]
[Termination "jefferyx won on time"]

1. Nf3 {[%clk 0:03:00.9]} 1... Nf6 {[%clk 0:02:57.3]} 2. c4 {[%clk 0:03:00.9]}
2... e6 {[%clk 0:02:57.7]} 3. b3 {[%clk 0:02:59.3]} 3... d5 {[%clk 0:02:57.8]}
4. Bb2 {[%clk 0:02:58.2]} 4... Be7 {[%clk 0:02:57.7]} 5. g3 {[%clk 0:02:57.7]}
5... c5 {[%clk 0:02:50.5]} 6. cxd5 {[%clk 0:02:56.4]} 6... exd5 {[%clk
0:02:49.5]} 7. Bg2 {[%clk 0:02:54.8]} 7... O-O {[%clk 0:02:47]} 8. O-O {[%clk
0:02:54]} 8... d4 {[%clk 0:02:46.7]} 9. e3 {[%clk 0:02:53.6]} 9... Nc6 {[%clk
0:02:46.9]} 10. Na3 {[%clk 0:02:49.9]} 10... Re8 {[%clk 0:02:45.6]} 11. exd4
{[%clk 0:02:50.2]} 11... cxd4 {[%clk 0:02:46.5]} 12. Nc4 {[%clk 0:02:47.2]}
12... Bf5 {[%clk 0:02:42.1]} 13. Nce5 {[%clk 0:02:40.1]} 13... Nxe5 {[%clk
0:02:36.8]} 14. Nxe5 {[%clk 0:02:41]} 14... Bc5 {[%clk 0:02:37.5]} 15. Re1
{[%clk 0:02:41.1]} 15... Qd6 {[%clk 0:02:29.3]} 16. Bxb7 {[%clk 0:02:30.8]}
16... Rab8 {[%clk 0:02:26.6]} 17. Nc4 {[%clk 0:02:31.2]} 17... Qd7 {[%clk
0:02:21]} 18. Bg2 {[%clk 0:02:30.7]} 18... Ne4 {[%clk 0:02:13.9]} 19. Rc1 {[%clk
0:02:13.9]} 19... Rbc8 {[%clk 0:01:45.5]} 20. a3 {[%clk 0:02:06.4]} 20... a6
{[%clk 0:01:42.9]} 21. b4 {[%clk 0:02:01.7]} 21... Ba7 {[%clk 0:01:43.2]} 22. d3
{[%clk 0:02:02.2]} 22... Nc3 {[%clk 0:01:43.2]} 23. Bxc3 {[%clk 0:02:01.7]}
23... dxc3 {[%clk 0:01:44.1]} 24. Rxe8+ {[%clk 0:01:57.8]} 24... Rxe8 {[%clk
0:01:44]} 25. Be4 {[%clk 0:01:50.9]} 25... Qd4 {[%clk 0:01:35.8]} 26. Ne3 {[%clk
0:01:47.9]} 26... Be6 {[%clk 0:01:15.1]} 27. Qe1 {[%clk 0:01:45.6]} 27... Rc8
{[%clk 0:01:13.9]} 28. Bb7 {[%clk 0:01:44.5]} 28... Rc7 {[%clk 0:01:12.7]} 29.
Bxa6 {[%clk 0:01:44.7]} 29... h6 {[%clk 0:01:01.9]} 30. Bc4 {[%clk 0:01:44.5]}
30... Bh3 {[%clk 0:00:29.6]} 31. Qxc3 {[%clk 0:01:24.2]} 31... Qd6 {[%clk
0:00:29.9]} 32. Nd5 {[%clk 0:01:10.6]} 32... Rc8 {[%clk 0:00:30.3]} 33. Qe1
{[%clk 0:01:01.4]} 33... Be6 {[%clk 0:00:20]} 34. Ne3 {[%clk 0:00:55]} 34... Bh3
{[%clk 0:00:18.7]} 35. Nd5 {[%clk 0:00:51.6]} 35... Be6 {[%clk 0:00:18.4]} 36.
Nf4 {[%clk 0:00:48]} 36... Bd7 {[%clk 0:00:18.5]} 37. Qe4 {[%clk 0:00:40.2]}
37... Qb6 {[%clk 0:00:12.6]} 38. Rf1 {[%clk 0:00:39.4]} 38... Re8 {[%clk
0:00:11.3]} 39. Qd5 {[%clk 0:00:34.5]} 39... Re7 {[%clk 0:00:11.7]} 40. Qa8+
{[%clk 0:00:29.8]} 40... Kh7 {[%clk 0:00:09.7]} 41. Nd5 {[%clk 0:00:28.1]} 1-0

[Event "Late-Titled-Tuesday-Blitz-March-26-2024"]
[Site "Chess.com"]
[Date "2024.03.26"]
[Round "11"]
[White "Slovineanu"]
[Black "IsaqueGoncalvesSanto"]
[Result "1-0"]
[WhiteElo "2474"]
[BlackElo "1918"]
[TimeControl "180+1"]
[EndTime "16:04:12 PDT"]
[Termination "Slovineanu won on time"]

1. d4 {[%clk 0:02:57.9]} 1... e6 {[%clk 0:02:58.5]} 2. c4 {[%clk 0:02:56.1]}
2... d5 {[%clk 0:02:58.4]} 3. Nf3 {[%clk 0:02:55.9]} 3... c6 {[%clk 0:02:58.6]}
4. Nbd2 {[%clk 0:02:55.2]} 4... Nf6 {[%clk 0:02:54.3]} 5. e3 {[%clk 0:02:54.6]}
5... Bb4 {[%clk 0:02:51.9]} 6. a3 {[%clk 0:02:51.3]} 6... Ba5 {[%clk 0:02:51.8]}
7. b4 {[%clk 0:02:48.9]} 7... Bc7 {[%clk 0:02:51.6]} 8. Bb2 {[%clk 0:02:49.2]}
8... O-O {[%clk 0:02:49.1]} 9. Bd3 {[%clk 0:02:48.8]} 9... Nbd7 {[%clk
0:02:44.8]} 10. O-O {[%clk 0:02:48.6]} 10... Re8 {[%clk 0:02:41.4]} 11. e4
{[%clk 0:02:48.5]} 11... dxc4 {[%clk 0:02:29.9]} 12. Nxc4 {[%clk 0:02:45.6]}
12... Nb6 {[%clk 0:02:25.7]} 13. Ne3 {[%clk 0:02:36.2]} 13... a5 {[%clk
0:02:13.4]} 14. Rc1 {[%clk 0:02:20.3]} 14... axb4 {[%clk 0:02:05.4]} 15. axb4
{[%clk 0:02:20.3]} 15... Na4 {[%clk 0:02:05.3]} 16. Ba1 {[%clk 0:02:20.4]} 16...
h6 {[%clk 0:01:52.6]} 17. Bc2 {[%clk 0:02:19.5]} 17... Nb6 {[%clk 0:01:47.2]}
18. Qd3 {[%clk 0:02:19.5]} 18... e5 {[%clk 0:01:34.5]} 19. Nxe5 {[%clk
0:02:08.3]} 19... Qe7 {[%clk 0:01:11.3]} 20. f4 {[%clk 0:01:57.3]} 20... Qxb4
{[%clk 0:01:02.8]} 21. Bb3 {[%clk 0:01:26.1]} 21... Be6 {[%clk 0:00:56.5]} 22.
Bxe6 {[%clk 0:01:25.7]} 22... fxe6 {[%clk 0:00:56.3]} 23. Bc3 {[%clk 0:01:16]}
23... Qe7 {[%clk 0:00:37.7]} 24. f5 {[%clk 0:01:15.4]} 24... Ra3 {[%clk
0:00:22.5]} 25. Ra1 {[%clk 0:01:05]} 25... Rea8 {[%clk 0:00:20.8]} 26. Rxa3
{[%clk 0:00:54.1]} 26... Rxa3 {[%clk 0:00:19.4]} 27. Ra1 {[%clk 0:00:47.4]}
27... Rxa1+ {[%clk 0:00:18.5]} 28. Bxa1 {[%clk 0:00:47.6]} 28... exf5 {[%clk
0:00:18.9]} 29. Nxf5 {[%clk 0:00:47.4]} 29... Qb4 {[%clk 0:00:17.7]} 30. Bc3
{[%clk 0:00:44.5]} 30... Qb3 {[%clk 0:00:16.4]} 31. Ng6 {[%clk 0:00:30.7]} 31...
Nc4 {[%clk 0:00:07.1]} 32. e5 {[%clk 0:00:25.5]} 32... Nd5 {[%clk 0:00:06.5]}
33. Nge7+ {[%clk 0:00:25.8]} 33... Kf7 {[%clk 0:00:06.2]} 34. Nxd5 {[%clk
0:00:25.2]} 34... cxd5 {[%clk 0:00:06]} 35. Qf3 {[%clk 0:00:24.5]} 35... Qb1+
{[%clk 0:00:05.8]} 36. Kf2 {[%clk 0:00:23.5]} 36... Qc2+ {[%clk 0:00:05.7]} 37.
Kg3 {[%clk 0:00:23.1]} 37... Ke8 {[%clk 0:00:01.6]} 38. Nxg7+ {[%clk 0:00:21]}
38... Kd8 {[%clk 0:00:01.5]} 39. Qf8+ {[%clk 0:00:19.3]} 1-0

[Event "Late-Titled-Tuesday-Blitz-March-26-2024"]
[Site "Chess.com"]
[Date "2024.03.26"]
[Round "11"]
[White "Boninknights"]
[Black "steepedgames"]
[Result "0-1"]
[WhiteElo "2384"]
[BlackElo "2521"]
[TimeControl "180+1"]
[EndTime "16:04:14 PDT"]
[Termination "steepedgames won on time"]

1. d4 {[%clk 0:02:58.9]} 1... f5 {[%clk 0:02:59.6]} 2. Nc3 {[%clk 0:02:57]} 2...
Nf6 {[%clk 0:02:59.7]} 3. Bg5 {[%clk 0:02:54.7]} 3... e6 {[%clk 0:02:59.7]} 4.
e4 {[%clk 0:02:53.4]} 4... fxe4 {[%clk 0:02:59.5]} 5. Nxe4 {[%clk 0:02:52.8]}
5... Be7 {[%clk 0:03:00]} 6. Bxf6 {[%clk 0:02:52.4]} 6... Bxf6 {[%clk
0:03:00.9]} 7. Nf3 {[%clk 0:02:51.6]} 7... O-O {[%clk 0:03:01]} 8. Bd3 {[%clk
0:02:48.5]} 8... Nc6 {[%clk 0:03:01.1]} 9. c3 {[%clk 0:02:47.8]} 9... d6 {[%clk
0:03:00.5]} 10. Qe2 {[%clk 0:02:46.4]} 10... e5 {[%clk 0:03:00.1]} 11. dxe5
{[%clk 0:02:39]} 11... Bxe5 {[%clk 0:02:45.6]} 12. Neg5 {[%clk 0:02:24.2]} 12...
h6 {[%clk 0:02:21]} 13. Bc4+ {[%clk 0:02:03.6]} 13... Kh8 {[%clk 0:02:06.4]} 14.
Nf7+ {[%clk 0:02:00.9]} 14... Rxf7 {[%clk 0:02:06]} 15. Bxf7 {[%clk 0:02:00.2]}
15... Qf6 {[%clk 0:02:04.3]} 16. Nxe5 {[%clk 0:01:49.9]} 16... Nxe5 {[%clk
0:02:00.7]} 17. Bb3 {[%clk 0:01:48.3]} 17... Bg4 {[%clk 0:01:36.5]} 18. f3
{[%clk 0:01:41]} 18... Re8 {[%clk 0:01:32.3]} 19. O-O {[%clk 0:01:33]} 19...
Nxf3+ {[%clk 0:01:25.8]} 20. Rxf3 {[%clk 0:01:30]} 20... Rxe2 {[%clk 0:01:24]}
21. Rxf6 {[%clk 0:01:29.5]} 21... gxf6 {[%clk 0:01:23.8]} 22. Rf1 {[%clk
0:01:24.3]} 22... Kg7 {[%clk 0:01:20.9]} 23. Rf2 {[%clk 0:01:09.9]} 23... Re1+
{[%clk 0:01:11.6]} 24. Rf1 {[%clk 0:01:08.9]} 24... Re2 {[%clk 0:01:07]} 25. Rf2
{[%clk 0:01:07.8]} 25... Re1+ {[%clk 0:01:07.2]} 26. Rf1 {[%clk 0:01:07.2]}
26... Re5 {[%clk 0:01:04.3]} 27. Rf4 {[%clk 0:00:59.1]} 27... Bd7 {[%clk
0:01:03.8]} 28. Kf2 {[%clk 0:00:57.8]} 28... Bc6 {[%clk 0:00:56.8]} 29. g3
{[%clk 0:00:56]} 29... Bb5 {[%clk 0:00:53]} 30. Bd1 {[%clk 0:00:48.9]} 30... a5
{[%clk 0:00:48.3]} 31. Bf3 {[%clk 0:00:41.5]} 31... b6 {[%clk 0:00:45.8]} 32. b4
{[%clk 0:00:38.7]} 32... Kf7 {[%clk 0:00:36.9]} 33. a4 {[%clk 0:00:32.1]} 33...
Bxa4 {[%clk 0:00:34.3]} 34. bxa5 {[%clk 0:00:30.8]} 34... Rxa5 {[%clk
0:00:34.5]} 35. Rh4 {[%clk 0:00:22.3]} 35... Bc2 {[%clk 0:00:27.4]} 36. Rxh6
{[%clk 0:00:20.2]} 36... Rc5 {[%clk 0:00:27.3]} 37. g4 {[%clk 0:00:07.4]} 37...
Rxc3 {[%clk 0:00:26.5]} 38. h4 {[%clk 0:00:06.3]} 38... Kg7 {[%clk 0:00:23.3]}
39. g5 {[%clk 0:00:05.7]} 39... fxg5 {[%clk 0:00:23.5]} 40. hxg5 {[%clk
0:00:04.9]} 40... Rc5 {[%clk 0:00:24]} 41. Rh5 {[%clk 0:00:03.6]} 41... Bg6
{[%clk 0:00:23.6]} 0-1

[Event "Late-Titled-Tuesday-Blitz-March-26-2024"]
[Site "Chess.com"]
[Date "2024.03.26"]
[Round "11"]
[White "Korchmar_Vasiliy"]
[Black "KaydenTroffChess"]
[Result "1-0"]
[WhiteElo "2716"]
[BlackElo "2848"]
[TimeControl "180+1"]
[EndTime "16:04:15 PDT"]
[Termination "Korchmar_Vasiliy won on time"]

1. e4 {[%clk 0:03:00.9]} 1... c5 {[%clk 0:03:00]} 2. d4 {[%clk 0:03:01.3]} 2...
cxd4 {[%clk 0:02:59.3]} 3. Qxd4 {[%clk 0:03:02.2]} 3... Nc6 {[%clk 0:02:59]} 4.
Qd3 {[%clk 0:03:02.7]} 4... g6 {[%clk 0:02:59]} 5. Nc3 {[%clk 0:03:03.1]} 5...
Bg7 {[%clk 0:02:59.4]} 6. Nf3 {[%clk 0:03:03.8]} 6... d6 {[%clk 0:02:59.1]} 7.
Be2 {[%clk 0:03:04.4]} 7... Nf6 {[%clk 0:02:59.6]} 8. O-O {[%clk 0:03:04.9]}
8... O-O {[%clk 0:03:00]} 9. Nd5 {[%clk 0:03:05.5]} 9... Bg4 {[%clk 0:02:50.6]}
10. c3 {[%clk 0:03:05.2]} 10... Bxf3 {[%clk 0:02:47.3]} 11. Qxf3 {[%clk
0:03:04.8]} 11... Rc8 {[%clk 0:02:44.1]} 12. Bg5 {[%clk 0:03:04.5]} 12... Ne5
{[%clk 0:02:40]} 13. Qe3 {[%clk 0:03:00.2]} 13... Nc4 {[%clk 0:02:36.2]} 14.
Qxa7 {[%clk 0:02:52.3]} 14... Nxd5 {[%clk 0:01:33.3]} 15. exd5 {[%clk
0:02:53.2]} 15... Qd7 {[%clk 0:01:32.1]} 16. Bxc4 {[%clk 0:02:44.4]} 16... Rxc4
{[%clk 0:01:31.9]} 17. Qe3 {[%clk 0:02:45.1]} 17... Re8 {[%clk 0:01:29.8]} 18.
h3 {[%clk 0:02:38.3]} 18... Qb5 {[%clk 0:01:28.3]} 19. Qd3 {[%clk 0:02:22.4]}
19... Rc5 {[%clk 0:01:27.1]} 20. Qe4 {[%clk 0:01:50.1]} 20... Rxd5 {[%clk
0:01:01.8]} 21. Be3 {[%clk 0:01:50.2]} 21... Re5 {[%clk 0:00:56.1]} 22. Qc2
{[%clk 0:01:45]} 22... Rc8 {[%clk 0:00:56.1]} 23. a4 {[%clk 0:01:43.8]} 23...
Qc4 {[%clk 0:00:55.4]} 24. a5 {[%clk 0:01:41.6]} 24... Rb5 {[%clk 0:00:50.1]}
25. Ra4 {[%clk 0:01:30.8]} 25... Qb3 {[%clk 0:00:45.8]} 26. Qe4 {[%clk
0:01:03.1]} 26... d5 {[%clk 0:00:18]} 27. Qh4 {[%clk 0:00:43.1]} 27... Qxb2
{[%clk 0:00:16.6]} 28. Qxe7 {[%clk 0:00:39.8]} 28... Bxc3 {[%clk 0:00:14.8]} 29.
Rf4 {[%clk 0:00:27.2]} 29... Rf8 {[%clk 0:00:13.6]} 30. Bc5 {[%clk 0:00:27.8]}
30... Rxc5 {[%clk 0:00:12.9]} 31. Qxc5 {[%clk 0:00:27.8]} 31... d4 {[%clk
0:00:13.5]} 32. Qd5 {[%clk 0:00:19.2]} 32... Qe2 {[%clk 0:00:09.3]} 33. Rf3
{[%clk 0:00:12.5]} 33... h5 {[%clk 0:00:05.8]} 34. Rb1 {[%clk 0:00:12.2]} 34...
Qc2 {[%clk 0:00:05.5]} 35. Rxb7 {[%clk 0:00:11.5]} 35... Qc1+ {[%clk 0:00:03.2]}
36. Kh2 {[%clk 0:00:11.9]} 36... Qd2 {[%clk 0:00:01.4]} 37. Rfxf7 {[%clk
0:00:09]} 1-0